Cogmind - Beta 13 @@@ ROGUE MODE // 2024.05.27 @ 16:10:24 Player: Ragemodebzrk Result: Destroyed by G-47 Trooper with Particle Gun Performance ------------- Evolutions (2) 1000 Regions Visited (5) 1000 Robots Destroyed (19) 95 Value Destroyed (476) 476 Prototype IDs (0) 0 Alien Tech Used (0) 0 Bonus (35) 35 TOTAL SCORE: 2606 Bonus ------- Follower Combat Kills 35 Cogmind --------- Core Integrity 0/550 Matter 245/300 Energy 65/100 System Corruption 0% Temperature Cool (9) Movement Core (50) Location -8/Materials Parts ------- > --- POWER (3) -------- (None) > --- PROPULSION (3) --- (None) > --- UTILITY (3) ------ Structural Scanner > --- WEAPON (2) ------- (None) > --- INVENTORY (5) ---- Recalibrator Peak State ------------ > --- POWER ------------ Improved Deuterium Engine Improved Deuterium Engine Improved Deuterium Engine > --- PROPULSION ------- Hover Unit Hover Unit > --- UTILITY ---------- Small Battery Shield Generator Recalibrator > --- WEAPON ----------- Light Assault Rifle Rocket Launcher > --- INVENTORY -------- Improved Ion Engine Structural Scanner Sensor Array Light Assault Rifle Datajack [Rating: 24] Favorites ----------- Power Light Ion Engine Engine Light Ion Engine Propulsion Hover Unit Wheel Wheel Hover Unit Hover Unit Utility Small Battery Device Structural Scanner Storage Small Battery Protection Light Armor Plating Weapon Light Assault Rifle Energy Gun Small Laser Ballistic Gun Light Assault Rifle Launcher Rocket Launcher Special Melee Weapon Datajack Build | -11 -10 -10 -10 -9 -8 ------- Run | Yrd Mat Min Exi Min Mat Slots Evolved 4 | . . . . . 4 Power 2 | . . . . . 2 Propulsion 1 | . . . . . 1 Utility 1 | . . . . . 1 Weapon . | . . . . . . Parts Attached 28 | 6 8 3 . 2 9 Power 7 | 1 1 1 . 1 3 Engine 7 | 1 1 1 . 1 3 Core . | . . . . . . Reactor . | . . . . . . Propulsion 5 | 2 3 . . . . Treads . | . . . . . . Leg . | . . . . . . Wheel 3 | 2 1 . . . . Hover 2 | . 2 . . . . Flight . | . . . . . . Utility 10 | 1 4 . . 1 4 Device 6 | . 2 . . 1 3 Storage 3 | 1 2 . . . . Processor . | . . . . . . Hackware . | . . . . . . Protection 1 | . . . . . 1 Artifact . | . . . . . . Weapon 6 | 2 . 2 . . 2 Energy Gun 2 | 2 . . . . . Energy Cannon . | . . . . . . Ballistic Gun 2 | . . 2 . . . Ballistic Cannon . | . . . . . . Launcher 1 | . . . . . 1 Special Weapon . | . . . . . . Impact Weapon . | . . . . . . Slashing Weapon . | . . . . . . Piercing Weapon . | . . . . . . Special Melee Weapon 1 | . . . . . 1 Unidentified Prototypes . | . . . . . . Parts Lost 15 | . 1 1 . . 13 Power 4 | . 1 . . . 3 Propulsion 2 | . . . . . 2 Utility 5 | . . . . . 5 Weapon 4 | . . 1 . . 3 Highest Loss Streak 8 | . 1 1 . . 8 To Critical Strikes . | . . . . . . Average Slot Usage (%) 86 | . 88 97 100 100 50 Engine 9 | . 5 14 14 14 16 Wheel 4 | . 9 . . . . Hover 19 | . 18 28 28 28 3 Device 14 | . 15 14 14 14 10 Storage 11 | . 10 14 14 14 7 Energy Gun 14 | . 28 4 . . . Ballistic Gun 10 | . . 22 28 28 9 Naked Turns 3 | . . . . . 3 Heaviest Build 39 | 11 12 9 7 12 39 Greatest Support 20 | 20 20 12 12 12 12 Greatest Overweight (x) 7 | . 1 . . . 7 Average Overweight (x) . | . . . . . 2 Largest Inventory Capacity 8 | 8 8 5 5 5 5 Average Capacity 5 | 6 6 5 5 5 5 Most Carried 5 | 2 4 4 3 5 5 Average Carried 2 | . 1 2 3 3 3 Final Capacity 8 | 8 5 5 5 5 5 Final Carried 4 | . 2 3 3 4 1 Class Distribution -------------------- 100% | Mutant Dominant Class ---------------- Mutant | -10/Materials Mutant | -10/Mines Mutant | -10/Exiles Mutant | -9/Mines Mutant | -8/Materials Resources | -11 -10 -10 -10 -9 -8 ----------- Run | Yrd Mat Min Exi Min Mat Matter Collected 448 | 249 84 44 . 28 43 Remotely . | . . . . . . Salvage Created 551 | . 314 66 . 39 132 Parts 23 | . 8 6 . 3 6 Haulers Intercepted . | . . . . . . Recyclers Shooed 2 | . 2 . . . . Parts Field Recycled . | . . . . . . Retrieved Matter . | . . . . . . Parts Self-Destructed . | . . . . . . Prevented . | . . . . . . Kills | -11 -10 -10 -10 -9 -8 ------- Run | Yrd Mat Min Exi Min Mat Combat Hostiles Destroyed 17 | . 5 3 . 3 6 Guns 12 | . 5 3 . 3 1 AOE 5 | . . . . . 5 Classes Destroyed 4 | . 3 1 . . . Recycler 1 | . 1 . . . . Watcher 1 | . 1 . . . . Swarmer 8 | . . 2 . 3 3 Grunt 9 | . 5 1 . . 3 Best Kill Streak 5 | . 2 2 . 3 5 Combat Bots Only 5 | . 2 2 . 3 5 Max Kills in Single Turn 3 | . 1 1 . 1 3 Gunslinging . | . . . . . . Exploded 3 | . . . . . 3 Melee . | . . . . . . Uniques/NPCs Destroyed . | . . . . . . Combat | -11 -10 -10 -10 -9 -8 -------- Run | Yrd Mat Min Exi Min Mat Hostile Shots Fired 173 | . 33 18 . 10 112 Missed 57 | . 14 5 . 2 36 Damage Taken 1636 | . 245 126 . 69 1196 Core 592 | . . 16 . 25 551 Absorbed by Shields 38 | . . . . . 38 Core Remaining (%) 91 | 100 . . . 83 . Volleys Fired 84 | . 39 12 . 4 29 Largest 2 | . 2 2 . 2 2 Hottest 90 | . 90 90 . 40 53 Shots Fired 140 | . 76 23 . 8 33 Gun 136 | . 76 23 . 8 29 Cannon . | . . . . . . Launcher 4 | . . . . . 4 Special . | . . . . . . Kinetic 51 | . . 14 . 8 29 Thermal 85 | . 76 9 . . . Explosive 4 | . . . . . 4 Electromagnetic . | . . . . . . Robot Hit Streak 6 | . 6 4 . 4 5 Robot Miss Streak 4 | . 3 4 . 3 4 Penetration Max . | . . . . . . Secondary Targets 3 | . . 2 . 1 . Max Gunslinging Chain 1 | . . 1 . 1 . Shots Hit Robots 77 | . 43 12 . 4 18 Core Hits 40 | . 18 5 . 3 14 Critical Kills . | . . . . . . Critical Parts Destroyed . | . . . . . . Critical Strikes 2 | . 2 . . . . Burn 2 | . 2 . . . . Melee Attacks 1 | . . . . . 1 Impact . | . . . . . . Slashing . | . . . . . . Piercing . | . . . . . . Sneak Attacks . | . . . . . . Combat Hostiles . | . . . . . . Follow-up Attacks . | . . . . . . Damage Inflicted 1096 | . 545 137 . 52 362 Guns 854 | . 532 137 . 52 133 Cannons . | . . . . . . Explosions 229 | . . . . . 229 Melee . | . . . . . . Ramming 13 | . 13 . . . . Kinetic 238 | . . 53 . 52 133 Thermal 616 | . 532 84 . . . Explosive 229 | . . . . . 229 Electromagnetic . | . . . . . . Impact . | . . . . . . Slashing . | . . . . . . Piercing . | . . . . . . Highest Corruption . | . . . . . . Average Corruption . | . . . . . . Corruption Purged . | . . . . . . Corruption Blocked . | . . . . . . Overload Shots . | . . . . . . Overflow Damage . | . . . . . . Projectiles . | . . . . . . Explosions . | . . . . . . Melee . | . . . . . . Knockbacks . | . . . . . . Impact . | . . . . . . Kinetic . | . . . . . . Secondary . | . . . . . . Self-Inflicted Damage 6 | . 6 . . . . Shots . | . . . . . . Rammed 1 | . 1 . . . . Targets Rammed 1 | . 1 . . . . Kicked . | . . . . . . Crushed . | . . . . . . Highest Temperature 280 | . 280 148 . 8 262 Average Temperature 93 | . 83 51 . 4 150 Received Heat Transfer 777 | . 135 15 . . 627 Siege Activations . | . . . . . . Robots Corrupted . | . . . . . . Combat Hostiles . | . . . . . . Parts Fried . | . . . . . . Impact Corruptions . | . . . . . . Robots Melted . | . . . . . . Combat Hostiles . | . . . . . . Parts Melted 4 | . 3 1 . . . Heat Transferred 1784 | . 1561 223 . . . Parts Sabotaged . | . . . . . . Parts Stolen . | . . . . . . Parts Stripped . | . . . . . . Power Chain Reactions . | . . . . . . Alert | -11 -10 -10 -10 -9 -8 ------- Run | Yrd Mat Min Exi Min Mat Peak Influence 154 | . 154 126 . 70 128 Initial 27 | . . 18 . . 27 Average 78 | . 78 93 . 68 93 Maximum Alert Level . | . . . . . . Low Security (%) 100 | 100 100 100 . 100 100 Level 1 . | . . . . . . Level 2 . | . . . . . . Level 3 . | . . . . . . Level 4 . | . . . . . . Level 5 . | . . . . . . High Security . | . . . . . . Max Security . | . . . . . . Squads Dispatched 2 | . 1 . . . 1 Investigation . | . . . . . . Extermination . | . . . . . . Reinforcement 2 | . 1 . . . 1 Assault . | . . . . . . Garrison . | . . . . . . Intercept . | . . . . . . Searches Triggered . | . . . . . . Construction Impeded 1 | . . . . . 1 Haulers Reinforced . | . . . . . . Active Scanning Responses . | . . . . . . Cargo Convoy Interrupts . | . . . . . . Stealth | -11 -10 -10 -10 -9 -8 --------- Run | Yrd Mat Min Exi Min Mat Distress Signals . | . . . . . . Communications Jammed . | . . . . . . Distress Signals . | . . . . . . Times Spotted 31 | . 9 5 . 3 14 Peak Tracking Total 8 | . 3 3 . 3 8 Tactical Retreats . | . . . . . . Traps | -11 -10 -10 -10 -9 -8 ------- Run | Yrd Mat Min Exi Min Mat Traps Triggered . | . . . . . . Indirectly . | . . . . . . Trap Hack Attempts . | . . . . . . Triggered . | . . . . . . Disarmed 3 | . 3 . . . . Reprogrammed 6 | . 6 . . . . Reused . | . . . . . . Traps Extracted . | . . . . . . Installed . | . . . . . . Triggered . | . . . . . . Machines | -11 -10 -10 -10 -9 -8 ---------- Run | Yrd Mat Min Exi Min Mat Machines Disabled . | . . . . . . Max in Single Turn . | . . . . . . Machines Repaired . | . . . . . . Machines Dismantled . | . . . . . . Machines Sabotaged . | . . . . . . Overloaded Fab Kills . | . . . . . . Hacking | -11 -10 -10 -10 -9 -8 --------- Run | Yrd Mat Min Exi Min Mat Machines Accessed 3 | . 3 . . . . Terminals 3 | . 3 . . . . Fabricators . | . . . . . . Repair Stations . | . . . . . . Recycling Units . | . . . . . . Scanalyzers . | . . . . . . Garrison Access . | . . . . . . Total Hacks 8 | . 8 . . . . Successful 4 | . 4 . . . . Failed 4 | . 4 . . . . Catastrophic 1 | . 1 . . . . Database Lockouts . | . . . . . . Manual . | . . . . . . Terminals 8 | . 8 . . . . Fabricators . | . . . . . . Repair Stations . | . . . . . . Recycling Units . | . . . . . . Scanalyzers . | . . . . . . Garrison Access . | . . . . . . Terminal Hacks 4 | . 4 . . . . Locate Traps 1 | . 1 . . . . Disarm Traps 1 | . 1 . . . . Reprogram Traps 1 | . 1 . . . . Recall Reinforcements 1 | . 1 . . . . Fabricator Hacks . | . . . . . . Repair Station Hacks . | . . . . . . Recycling Unit Hacks . | . . . . . . Scanalyzer . | . . . . . . Garrison Access Hacks . | . . . . . . Unauthorized Hacks . | . . . . . . Terminals . | . . . . . . Fabricators . | . . . . . . Repair Stations . | . . . . . . Recycling Units . | . . . . . . Scanalyzers . | . . . . . . Garrison Access . | . . . . . . Data Cores Recovered . | . . . . . . Used . | . . . . . . Hacking Detections 3 | . 3 . . . . Full Trace Events . | . . . . . . Feedback Events . | . . . . . . Feedback Blocked . | . . . . . . Robot Schematics Acquired . | . . . . . . Robots Built . | . . . . . . Authchips . | . . . . . . Time . | . . . . . . Total Robot Build Rating . | . . . . . . Part Schematics Acquired . | . . . . . . Parts Built . | . . . . . . Authchips . | . . . . . . Time . | . . . . . . Total Part Build Rating . | . . . . . . Parts Repaired . | . . . . . . Time . | . . . . . . Parts Recycled . | . . . . . . Recycled Matter . | . . . . . . Retrieved Matter . | . . . . . . Retrieved Components . | . . . . . . Parts Scanalyzed . | . . . . . . Part Schematics Acquired . | . . . . . . Parts Damaged . | . . . . . . Bothacking | -11 -10 -10 -10 -9 -8 ------------ Run | Yrd Mat Min Exi Min Mat Used RIF Installer . | . . . . . . Robots Hacked 1 | . . . . . 1 Non-combat . | . . . . . . Combat 1 | . . . . . 1 Robot Hacks Applied 1 | . . . . . 1 parse_system 1 | . . . . . 1 Relay Couplers Released . | . . . . . . Fabnet Peak Effective % . | . . . . . . Robots Rewired . | . . . . . . Allies Hacked . | . . . . . . Hacks Repelled . | . . . . . . Allies | -11 -10 -10 -10 -9 -8 -------- Run | Yrd Mat Min Exi Min Mat Total Allies 1 | . . 1 . . . Largest Group 1 | . . 1 . . . Highest-Rated Group 31 | . . 31 . . . Highest-Rated Ally 31 | . . 31 . . . Total Orders . | . . . . . . Ally Attacks 10 | . . 10 . . . Total Damage 189 | . . 189 . . . Kills 1 | . . 1 . . . Allies Corrupted . | . . . . . . Allies Melted . | . . . . . . Intel | -11 -10 -10 -10 -9 -8 ------- Run | Yrd Mat Min Exi Min Mat Robot Analysis Total . | . . . . . . Derelict Logs Recovered 3 | . . 2 . 1 . Drone Launches . | . . . . . . Drone Recoveries . | . . . . . . Exploration | -11 -10 -10 -10 -9 -8 ------------- Run | Yrd Mat Min Exi Min Mat Turns Passed 1095 | 34 529 141 22 200 169 Spaces Moved 897 | 29 304 156 39 322 47 Core 32 | 4 . . . . 28 Treads . | . . . . . . Legs . | . . . . . . Wheels 152 | 25 127 . . . . Hover 713 | . 177 156 39 322 19 Flight . | . . . . . . Fastest Speed 50 | 50 56 56 56 56 50 Average Speed 67 | 75 67 56 56 56 184 Slowest Speed 400 | 80 95 56 56 56 400 Overloaded Moves . | . . . . . . Propulsion Burnouts . | . . . . . . Robots Hopped . | . . . . . . Cave-ins Triggered . | . . . . . . Exploration Rate (%) 32 | 4 61 33 9 75 12 Regions Visited 5 Branch Regions 3 Pre-discovered Areas 1 | . . 1 . . . Known Exits Taken 1 | . . . 1 . . Unknown Exits Taken 4 | 1 1 1 . 1 . Scrap Searched 4 | . . 2 . 2 . Spaces Dug . | . . . . . . Terrain Destroyed 11 | . . . . . 11 Melee . | . . . . . . Projectile . | . . . . . . AOE 11 | . . . . . 11 Terrain Rammed . | . . . . . . Walls Destroyed . | . . . . . . Machines Disabled . | . . . . . . Actions | -11 -10 -10 -10 -9 -8 --------- Run | Yrd Mat Min Exi Min Mat Total 1251 | 40 550 188 38 335 100 Wait 209 | . 185 14 . 1 9 Move 892 | 28 303 155 38 321 47 Hop . | . . . . . . Pick Up 25 | 6 9 3 . 4 3 Fast Attach 3 | . . . . . 3 Attach 13 | 6 2 1 . . 4 Detach . | . . . . . . Swap 12 | . 6 2 . 2 2 Drop 11 | . 5 1 . 3 2 Fire 84 | . 39 12 . 4 29 Melee 1 | . . . . . 1 Ram 1 | . 1 . . . . Kick . | . . . . . . Crush . | . . . . . . Escape Stasis . | . . . . . . Rewire . | . . . . . . Trap . | . . . . . . Miscellaneous . | . . . . . . Route ------- -11/Scrapyard -10/Materials (discovered 3 exits: [*Min x2] / [Sub]) -10/Mines (discovered 2 exits: [*Mat] / [*Exi]) -10/Exiles (discovered 2 exits: *Min x2) -9/Mines -8/Materials (discovered 1 exit: Fac) History --------- Turn | Location | Event 24 | -11/Scrapyard | Discovered new exit (range 14) 35 | -11/Scrapyard | Entered Materials 136 | -10/Materials | Discovered new exit (range 12) 273 | -10/Materials | Discovered new exit (range 11) 314 | -10/Materials | Build established: Mutant 554 | -10/Materials | Discovered new exit (range 10) 564 | -10/Materials | Entered Mines 569 | -10/Mines | Met a Derelict bent on vengeance 577 | -10/Mines | Escorted by a lone wolf Derelict 578 | -10/Mines | Discovered new exit (range 12) 597 | -10/Mines | Learned location of Storage (-7) 610 | -10/Mines | Learned Materials non-interactive machine intel 703 | -10/Mines | Deemed a non-threat by the Exiles lab entrance 703 | -10/Mines | Discovered new exit (range 5) 705 | -10/Mines | Entered Exiles 706 | -10/Exiles | Identified exit to Mines 727 | -10/Exiles | Entered Mines 810 | -9/Mines | Received a Rocket Launcher from a helpful Derelict 921 | -9/Mines | Discovered new exit (range 6) 927 | -9/Mines | Entered Materials 927 | -8/Materials | Evolved 4 slots: Power x2, Propulsion x1, Utility x1 928 | -8/Materials | Identified exit to Factory 929 | -8/Materials | Loaded intel: 26 non-interactive machine locations 1029 | -8/Materials | Lost 5 parts (1p2n1u1w) 1082 | -8/Materials | Core integrity fell below 50% 1092 | -8/Materials | Core integrity fell below 20% 1096 | -8/Materials | Destroyed by G-47 Trooper with Particle Gun Last Messages --------------- U-05 Engineer lays Concrete. K-01 Serf collects debris. U-05 Engineer lays Concrete. K-01 Serf collects debris. U-05 Engineer lays Concrete. K-01 Serf collects debris. U-05 Engineer lays Concrete. K-01 Serf collects debris. Lgt. Assault Rifle destroyed. Sml. Battery destroyed. Imp. Deuterium Engine destroyed. Jacked G-47 Trooper... >>parse_system Reading system data... Acquired Lgt. Armor Plating. Recalibrator destroyed. Datajack destroyed. Lgt. Armor Plating destroyed. Critical hit (Burn: +37). Sensor Array destroyed. Map ----- +----------------------------------------------------+ | ????????????]!!]]?????# + #????? | | ??????????# ?????# # #????? | | ??????????# ###### # #????? | | ???????? ########????? | | ???????? !!#???????? | | ????????? """ !!#???????? | | ??????????# """ #???????? | | ??????????# """ * #???????? | | ????????? + #???????? | | ??????????# !!#???????? | | ??????????# #####???????? | | ??????????# #???????????? | | ???????? # #???????????? | | ??????????# #???????????? | | ??????????# | #???????????? | | ??????????# ] #???????????? | | ??????????# #???????????? | | ????? #### ####????????? | | ??? % ######+####????????? | | ??? # gg ##????????? | | ???? # g g##????????? | | ???? + g g ##????????? | | ???? # g ##????????? | | ????? "T" # ##????????? | | ????? """ # ##????????? | | ??????########## # @ ##????????? | | ???????????????# # = ##????????? | | ???????????????# # ##????????? | | ???????????????+ ###########????????? | | ???????????????# ###########????????? | | ???????????????? ???????????????????? | | ??????????????????????????????????????? | | ??????????????????????????????????????? | | ???????????"""????????????????????????? | | ???????????"""????????????????????????? | | ???????????"""????????????????????????? | | ??????????????????????????????????????? | | ??????????????????????????????????????? | | ??????????????????????????????????????? | | ??????????????????????????????????????? | | ??????????????????????????????????????? | | ??????????????????????????????????????? | | ??????????????????????????????????????? | | ??????????????????????????????????????? | | ??????????????????????????????????????? | | ??????????????????????????????????????? | | ??????????????????????????????????????? | | ??????????????????????????????????????? | | ??????????????????????????????????????? | | ??????????????????????????????????????? | +----------------------------------------------------+ Best States ------------- Heat Dissipation 31 Energy Generation 38 Energy Capacity 770 Matter Stores 300 Matter Capacity 300 Sight Range 16 Robot Scan Range 14 Terrain Scan Density 10 Armor Coverage 150 Evasion (%) 53 Item Schematics ----------------- None Robot Schematics ------------------ None Fabricated ------------ Nothing Alien Tech Used ----------------- None Achievements -------------- GoHome() Challenges ------------ None Game ------ Seed CoordinationDrainedDetonator Manual? 0 Play Time 00:22:26 Cumulative 3.1 hours Start 2024.05.27 @ 15:50:43 End 2024.05.27 @ 16:10:24 Sessions 1 Manual Loads 0 Difficulty Rogue Special Mode None Game No. 5 Rogue 5 Adventurer 0 Explorer 0 Win Type - Total 0 Types 0/0/0/0/0/0/0/0/0 Lore% 9 Gallery% 10 Achievement% 7 Wizard Run 0 Options --------- Layout 1 ASCII 0 Keyboard 0 Movement Mouse Keybinds 0 Fullscreen 1 Font 24/Smallcaps Map View 50x35 Zoom Use 0% Tactical HUD 0 Map Filters NONE Filters NONE Steam 1 RUN: 77f6198b-46d2-46c5-82d0-214b8839489a